fUST/lending_fUST_20250618
["ID","MTS","AMOUNT","RATE_DAILY","PERIOD"]
[366453036,1750261834495,-460.0,0.00021917,6]
[366453037,1750261834505,-460.0,0.00021917,6]
[366453038,1750261834515,-460.0,0.00021917,6]
[366453039,1750261834525,-460.0,0.00021917,6]
[366453040,1750261834534,-460.0,0.00021917,6]
[366453041,1750261834544,-723.98,0.00021917,6]
[366453042,1750261834554,-460.0,0.00021917,6]
[366453043,1750261834564,-500.0,0.00021917,6]
[366453044,1750261834574,-461.1195017,0.00021917,6]
[366453045,1750261834584,-500.0,0.00021917,6]
[366453046,1750261834594,-465.71258879,0.00021917,6]
[366453047,1750261834604,-460.0,0.00021917,6]
[366453048,1750261834614,-500.0,0.00021917,6]
[366453049,1750261834624,-460.0,0.00021917,6]
[366453050,1750261834633,-500.0,0.00021917,6]
[366453051,1750261834642,-460.0,0.00021917,6]
[366453052,1750261834652,-500.0,0.00021917,6]
[366453053,1750261834662,-500.0,0.00021917,6]
[366453054,1750261834671,-500.0,0.00021917,6]
[366453055,1750261834681,-500.0,0.00021917,6]
[366453056,1750261834690,-500.0,0.00021917,6]
[366453057,1750261834699,-500.0,0.00021917,6]
[366453058,1750261834709,-430.0,0.00021917,6]
[366453059,1750261834718,-430.0,0.00021917,6]
[366453060,1750261834728,-460.0,0.00021917,6]
[366453061,1750261834737,-500.0,0.00021917,6]
[366453062,1750261834746,-500.0,0.00021917,6]
[366453063,1750261834756,-460.0,0.00021917,6]
[366453064,1750261834766,-360.68,0.00021917,6]
[366453065,1750261834775,-446.38826858,0.00021917,6]
[366453066,1750261834785,-460.0,0.00021917,6]
[366453067,1750261834795,-460.0,0.00021917,6]
[366453068,1750261834805,-440.0,0.00021917,6]
[366453069,1750261834814,-3909.89,0.00021917,6]
[366453070,1750261834824,-401.77033375,0.00021917,6]
[366453071,1750261834834,-909.87,0.00021917,6]
[366453072,1750261834844,-440.0,0.00021917,6]
[366453073,1750261834854,-460.0,0.00021917,6]
[366453074,1750261834864,-460.0,0.00021917,6]
[366453075,1750261834874,-460.0,0.00021917,6]
[366453076,1750261834886,-460.0,0.00021917,6]
[366453077,1750261834897,-440.0,0.00021917,6]
[366453078,1750261834907,-460.0,0.00021917,6]
[366453079,1750261834916,-460.0,0.00021917,6]
[366453080,1750261834927,-460.0,0.00021917,6]
[366453081,1750261834936,-440.0,0.00021917,6]
[366453082,1750261834945,-487.9,0.00021917,6]
[366453083,1750261834955,-460.0,0.00021917,6]
[366453084,1750261834965,-460.0,0.00021917,6]
[366453085,1750261834975,-460.0,0.00021917,6]
[366453086,1750261834984,-4016.02,0.00021917,6]
[366453087,1750261834994,-460.0,0.00021917,6]
[366453088,1750261835003,-460.0,0.00021917,6]
[366453089,1750261835013,-460.0,0.00021917,6]
[366453090,1750261835023,-440.0,0.00021917,6]
[366453091,1750261835032,-433.84154432,0.00021917,6]
[366453092,1750261835042,-460.0,0.00021917,6]
[366453093,1750261835051,-460.0,0.00021917,6]
[366453094,1750261835060,-430.0,0.00021917,6]
[366453095,1750261835070,-2467.5,0.00021917,6]
[366453096,1750261835079,-460.0,0.00021917,6]
[366453097,1750261835088,-460.0,0.00021917,6]
[366453098,1750261835097,-949.03,0.00021917,6]
[366453099,1750261835107,-302.39210614,0.00021917,6]
[366453100,1750261835116,-738.7,0.00021917,6]
[366453101,1750261835126,-440.0,0.00021917,6]
[366453102,1750261835135,-460.0,0.00021917,6]
[366453103,1750261835145,-460.0,0.00021917,6]
[366453104,1750261835154,-402.26377488,0.00021917,6]
[366453105,1750261835164,-460.0,0.00021917,6]
[366453106,1750261835173,-460.0,0.00021917,6]
[366453107,1750261835182,-1056.27,0.00021917,6]
[366453108,1750261835191,-460.0,0.00021917,6]
[366453109,1750261835200,-430.75988547,0.00021917,6]
[366453110,1750261835209,-460.0,0.00021917,6]
[366453111,1750261835219,-460.0,0.00021917,6]
[366453112,1750261835229,-460.0,0.00021917,6]
[366453113,1750261835238,-460.0,0.00021917,6]
[366453114,1750261835247,-460.0,0.00021917,6]
[366453115,1750261835256,-504.95294135,0.00021917,6]
[366453116,1750261835265,-444.91581008,0.00021917,6]
[366453117,1750261835274,-430.0,0.00021917,6]
[366453118,1750261835284,-431.0910382,0.00021917,6]
[366453119,1750261835293,-440.0,0.00021917,6]
[366453120,1750261835302,-460.0,0.00021917,6]
[366453121,1750261835312,-433.93491896,0.00021917,6]
[366453122,1750261835321,-460.0,0.00021917,6]
[366453123,1750261835331,-460.0,0.00021917,6]
[366453124,1750261835340,-434.93396424,0.00021917,6]
[366453125,1750261835349,-460.0,0.00021917,6]
[366453126,1750261835359,-3690.95,0.00021917,6]
[366453127,1750261835368,-460.0,0.00021917,6]
[366453128,1750261835378,-460.0,0.00021917,6]
[366453129,1750261835388,-460.0,0.00021917,6]
[366453130,1750261835397,-460.71444005,0.00021917,6]
[366453131,1750261835407,-460.0,0.00021917,6]
[366453132,1750261835416,-460.0,0.00021917,6]
[366453133,1750261835426,-430.0,0.00021917,6]
[366453134,1750261835435,-460.0,0.00021917,6]
[366453135,1750261835444,-460.0,0.00021917,6]
[366453136,1750261835454,-453.98830064,0.00021917,6]
[366453137,1750261835464,-460.0,0.00021917,6]
[366453138,1750261835473,-460.0,0.00021917,6]
[366453139,1750261835483,-460.0,0.00021917,6]
[366453140,1750261835493,-430.0,0.00021917,6]
[366453141,1750261835502,-845.96,0.00021917,6]
[366453142,1750261835512,-440.0,0.00021917,6]
[366453143,1750261835522,-5493.22,0.00021917,6]
[366453144,1750261835531,-460.0,0.00021917,6]
[366453145,1750261835541,-430.81777934,0.00021917,6]
[366453146,1750261835550,-460.0,0.00021917,6]
[366453147,1750261835559,-460.0,0.00021917,6]
[366453148,1750261835570,-460.0,0.00021917,6]
[366453149,1750261835579,-460.0,0.00021917,6]
[366453150,1750261835588,-430.0,0.00021917,6]
[366453151,1750261835597,-437.06282783,0.00021917,6]
[366453152,1750261835606,-460.0,0.00021917,6]
[366453153,1750261835616,-460.0,0.00021917,6]
[366453154,1750261835625,-430.0,0.00021917,6]
[366453155,1750261835634,-460.0,0.00021917,6]
[366453156,1750261835643,-460.0,0.00021917,6]
[366453157,1750261835653,-460.0,0.00021917,6]
[366453158,1750261835662,-440.0,0.00021917,6]
[366453159,1750261835671,-460.0,0.00021917,6]
[366453160,1750261835680,-1119.58,0.00021917,6]
[366453161,1750261835689,-460.0,0.00021917,6]
[366453162,1750261835697,-460.0,0.00021917,6]
[366453163,1750261835707,-460.0,0.00021917,6]
[366453164,1750261835715,-460.0,0.00021917,6]
[366453165,1750261835725,-460.0,0.00021917,6]
[366453166,1750261835734,-440.0,0.00021917,6]
[366453167,1750261835744,-460.0,0.00021917,6]
[366453168,1750261835753,-460.0,0.00021917,6]
[366453169,1750261835762,-1841.56,0.00021917,6]
[366453170,1750261835771,-533.61327747,0.00021917,6]
[366453171,1750261835780,-460.0,0.00021917,6]
[366453172,1750261835789,-460.0,0.00021917,6]
[366453173,1750261835798,-440.0,0.00021917,6]
[366453174,1750261835808,-440.0,0.00021917,6]
[366453175,1750261835818,-1182.48,0.00021917,6]
[366453176,1750261835827,-197.49781145,0.00021917,6]
[366453177,1750261835836,-1801.43,0.00021917,6]
[366453178,1750261835845,-460.0,0.00021917,6]
[366453179,1750261835855,-342.61552068,0.00021917,6]
[366453180,1750261835864,-238.98025227,0.00021917,6]
[366453181,1750261835874,-550.45,0.00021917,6]
[366453182,1750261835884,-460.0,0.00021917,6]
[366453183,1750261835896,-436.35779841,0.00021917,6]
[366453184,1750261835906,-464.44,0.00021917,6]
[366453185,1750261835915,-400.0,0.00021917,6]
[366453186,1750261835925,-460.0,0.00021917,6]
[366453187,1750261835936,-460.0,0.00021917,6]
[366453188,1750261835946,-460.0,0.00021917,6]
[366453189,1750261835955,-446.20414766,0.00021917,6]
[366453190,1750261835965,-430.00000002,0.00021917,6]
[366453191,1750261835975,-460.0,0.00021917,6]
[366453192,1750261835984,-460.0,0.00021917,6]
[366453193,1750261835993,-460.0,0.00021917,6]
[366453194,1750261836003,-502.32742177,0.00021917,6]
[366453195,1750261836013,-460.0,0.00021917,6]
[366453196,1750261836022,-460.0,0.00021917,6]
[366453197,1750261836032,-460.0,0.00021917,6]
[366453198,1750261836041,-460.0,0.00021917,6]
[366453199,1750261836051,-460.0,0.00021917,6]
[366453200,1750261836060,-460.0,0.00021917,6]
[366453201,1750261836069,-460.0,0.00021917,6]
[366453202,1750261836079,-460.0,0.00021917,6]
[366453203,1750261836088,-460.0,0.00021917,6]
[366453204,1750261836098,-460.0,0.00021917,6]
[366453205,1750261836107,-460.0,0.00021917,6]
[366453206,1750261836116,-400.0,0.00021917,6]
[366453207,1750261836126,-515.17,0.00021917,6]
[366453208,1750261836135,-1012.19,0.00021917,6]
[366453209,1750261836145,-460.0,0.00021917,6]
[366453210,1750261836155,-1009.34,0.00021917,6]
[366453211,1750261836164,-582.23,0.00021917,6]
[366453212,1750261836174,-460.0,0.00021917,6]
[366453213,1750261836183,-460.0,0.00021917,6]
[366453214,1750261836193,-460.0,0.00021917,6]
[366453215,1750261836202,-460.0,0.00021917,6]
[366453216,1750261836211,-406.1794503,0.00021917,6]
[366453217,1750261836221,-460.0,0.00021917,6]
[366453218,1750261836230,-430.0,0.00021917,6]
[366453219,1750261836240,-460.0,0.00021917,6]
[366453220,1750261836249,-460.0,0.00021917,6]
[366453221,1750261836258,-490.69,0.00021917,6]
[366453222,1750261836267,-460.0,0.00021917,6]
[366453223,1750261836277,-460.0,0.00021917,6]
[366453224,1750261836286,-285.31245619,0.00021917,6]
[366453225,1750261836295,-460.0,0.00021917,6]
[366453226,1750261836305,-440.0,0.00021917,6]
[366453227,1750261836314,-460.0,0.00021917,6]
[366453228,1750261836323,-460.0,0.00021917,6]
[366453229,1750261836332,-460.0,0.00021917,6]
[366453230,1750261836342,-460.0,0.00021917,6]
[366453231,1750261836351,-475.50069188,0.00021917,6]
[366453232,1750261836361,-460.0,0.00021917,6]
[366453233,1750261836370,-581.17,0.00021917,6]
[366453234,1750261836380,-460.0,0.00021917,6]
[366453235,1750261836389,-440.0,0.00021917,6]
[366453236,1750261836399,-460.0,0.00021917,6]
[366453237,1750261836408,-430.0,0.00021917,6]
[366453238,1750261836417,-460.0,0.00021917,6]
[366453239,1750261836427,-324.20011254,0.00021917,6]
[366453240,1750261836436,-460.0,0.00021917,6]
[366453241,1750261836445,-469.21,0.00021917,6]
[366453242,1750261836454,-460.0,0.00021917,6]
[366453243,1750261836463,-655.37,0.00021917,6]
[366453244,1750261836473,-460.0,0.00021917,6]
[366453245,1750261836482,-2323.71,0.00021917,6]
[366453246,1750261836492,-460.0,0.00021917,6]
[366453247,1750261836501,-442.06689248,0.00021917,6]
[366453248,1750261836511,-824.12,0.00021917,6]
[366453249,1750261836521,-742.89,0.00021917,6]
[366453250,1750261836531,-440.0,0.00021917,6]
[366453251,1750261836540,-370.0,0.00021917,6]
[366453252,1750261836550,-440.0,0.00021917,6]
[366453253,1750261836559,-440.0,0.00021917,6]
[366453254,1750261836569,-430.0,0.00021917,6]
[366453255,1750261836578,-460.0,0.00021917,6]
[366453256,1750261836587,-430.54307466,0.00021917,6]
[366453257,1750261836597,-460.0,0.00021917,6]
[366453258,1750261836606,-460.0,0.00021917,6]
[366453259,1750261836615,-3044.01,0.00021917,6]
[366453260,1750261836624,-500.0,0.00021917,6]
[366453261,1750261836634,-500.0,0.00021917,6]
[366453262,1750261836643,-568.99867219,0.00021917,6]
[366453263,1750261836652,-521.52608653,0.00021917,6]
[366453264,1750261836661,-688.26,0.00021917,6]
[366453265,1750261836670,-430.0,0.00021917,6]
[366453266,1750261836679,-1772.08,0.00021917,6]
[366453267,1750261836688,-1355.18,0.00021917,6]
[366453268,1750261836697,-460.0,0.00021917,6]
[366453269,1750261836707,-460.0,0.00021917,6]
[366453270,1750261836716,-460.0,0.00021917,6]
[366453271,1750261836725,-460.0,0.00021917,6]
[366453272,1750261836735,-460.0,0.00021917,6]
[366453273,1750261836745,-460.0,0.00021917,6]
[366453274,1750261836754,-564.55,0.00021917,6]
[366453275,1750261836763,-784.05,0.00021917,6]
[366453276,1750261836772,-440.0,0.00021917,6]
[366453277,1750261836782,-460.0,0.00021917,6]
[366453278,1750261836792,-440.0,0.00021917,6]
[366453279,1750261836801,-460.0,0.00021917,6]
[366453280,1750261836810,-506.06043007,0.00021917,6]
[366453281,1750261836821,-827.68,0.00021917,6]
[366453282,1750261836830,-460.0,0.00021917,6]
[366453283,1750261836839,-394.99251723,0.00021917,6]
[366453284,1750261836849,-166.0,0.00021918,2]
[366453285,1750261836858,-197.33449502,0.00021973,2]
[366453286,1750261836868,-500.33125713,0.00021973,2]
[366453287,1750261836877,-504.20668898,0.00021973,2]
[366453288,1750261836889,-500.50538099,0.00021973,2]
[366453289,1750261836899,-500.0,0.00021973,2]
[366453290,1750261836908,-501.07746307,0.00021973,2]
[366453291,1750261836918,-159.71985028,0.00021973,2]
[366453292,1750261836927,-500.0,0.00021973,2]
[366453293,1750261836937,-550.41727479,0.00021973,2]
[366453294,1750261836947,-532.98731685,0.00021973,2]
[366453295,1750261836956,-500.0,0.00021973,2]
[366453296,1750261836968,-500.0,0.00021973,2]
[366453297,1750261836977,-500.0,0.00021973,2]
[366453298,1750261836986,-500.0,0.00021973,2]
[366453299,1750261836995,-500.0,0.00021973,2]
[366453300,1750261837005,-500.0,0.00021973,2]
[366453301,1750261837014,-500.0,0.00021973,2]
[366453302,1750261837023,-500.0,0.00021973,2]
[366453303,1750261837032,-500.0,0.00021973,2]
[366453304,1750261837042,-500.0,0.00021973,2]
[366453305,1750261837051,-500.57114652,0.00021973,2]
[366453306,1750261837061,-500.0,0.00021973,2]
[366453307,1750261837073,-500.0,0.00021973,2]
[366453308,1750261837083,-774.97,0.00022,7]
[366453309,1750261837092,-160.0,0.00022017,2]
[366453310,1750261837102,-803.59947912,0.00022038,6]
[366453311,1750261837112,-316.66957007,0.0002216,2]
[366453312,1750261837122,-513.9240945,0.00022173,2]
[366453313,1750261837132,-504.89682241,0.00022173,2]
[366453314,1750261837142,-503.66755232,0.00022173,2]
[366453315,1750261837152,-500.0,0.00022173,2]
[366453316,1750261837163,-600.0,0.00022173,2]
[366453317,1750261837173,-500.0,0.00022173,2]
[366453318,1750261837182,-502.47256086,0.00022173,2]
[366453319,1750261837192,-500.0,0.00022173,2]
[366453320,1750261837201,-504.0200472,0.00022173,2]
[366453321,1750261837211,-365.37169537,0.00022173,2]
[366453322,1750261837220,-517.08068501,0.00022173,2]
[366453323,1750261837231,-500.0,0.00022173,2]
[366453324,1750261837241,-500.0,0.00022173,2]
[366453325,1750261837250,-500.0,0.00022173,2]
[366453326,1750261837261,-803.59947912,0.00022176,6]
[366453327,1750261837271,-460.0,0.00022191,6]
[366453328,1750261837281,-440.0,0.00022191,5]
[366453329,1750261837292,-460.0,0.00022191,6]
[366453330,1750261837302,-460.0,0.00022191,6]
[366453331,1750261837313,-430.0,0.00022191,6]
[366453332,1750261837327,-420.0,0.00022191,6]
[366453333,1750261837337,-224.75107337,0.00022191,6]
[366453334,1750261837347,-288.52414954,0.00022191,6]
[366453335,1750261837357,-346.98363686,0.00022191,6]
[366453336,1750261837367,-420.0,0.00022191,6]
[366453337,1750261837377,-460.0,0.00022191,6]
[366453338,1750261837387,-410.0,0.00022191,6]
[366453339,1750261837397,-460.0,0.00022191,6]
[366453340,1750261837407,-460.0,0.00022191,6]
[366453341,1750261837535,-420.0,0.00022191,6]
[366453342,1750261837545,-460.0,0.00022191,6]
[366453343,1750261837555,-440.0,0.00022191,6]
[366453344,1750261837566,-460.0,0.00022191,6]
[366453345,1750261837576,-460.0,0.00022191,6]
[366453346,1750261837586,-460.0,0.00022191,6]
[366453347,1750261837596,-366.36049359,0.00022191,6]
[366453348,1750261837605,-440.0,0.00022191,6]
[366453349,1750261837615,-460.0,0.00022191,6]
[366453350,1750261837624,-460.0,0.00022191,6]
[366453351,1750261837634,-460.0,0.00022191,6]
[366453352,1750261837644,-440.0,0.00022191,6]
[366453353,1750261837653,-440.0,0.00022191,6]
[366453354,1750261837662,-430.0,0.00022191,6]
[366453355,1750261837672,-420.0,0.00022191,6]
[366453356,1750261837681,-460.0,0.00022191,2]
[366453357,1750261837690,-460.0,0.00022191,6]
[366453358,1750261837700,-460.0,0.00022191,6]
[366453359,1750261837709,-460.0,0.00022191,6]
[366453360,1750261837719,-460.0,0.00022191,6]
[366453361,1750261837728,-532.76872918,0.00022191,6]
[366453362,1750261837738,-460.0,0.00022191,6]
[366453363,1750261837747,-450.0,0.00022191,6]
[366453364,1750261837757,-500.0,0.00022191,6]
[366453365,1750261837766,-599.9,0.00022191,6]
[366453366,1750261837775,-460.0,0.00022191,6]
[366453367,1750261837786,-495.54,0.00022191,6]
[366453368,1750261837795,-460.0,0.00022191,6]
[366453369,1750261837805,-460.0,0.00022191,6]
[366453370,1750261837816,-460.0,0.00022191,6]
[366453371,1750261837825,-510.23087786,0.00022191,6]
[366453372,1750261837835,-460.0,0.00022191,6]
[366453373,1750261837844,-460.0,0.00022191,6]
[366453374,1750261837854,-460.0,0.00022191,6]
[366453375,1750261837865,-460.0,0.00022191,6]
[366453376,1750261837875,-460.0,0.00022191,6]
[366453377,1750261837887,-667.27,0.00022191,6]
[366453378,1750261837898,-460.0,0.00022191,6]
[366453379,1750261837908,-460.0,0.00022191,6]
[366453380,1750261837919,-432.03593407,0.00022191,6]
[366453381,1750261837930,-440.0,0.00022191,6]
[366453382,1750261837939,-460.0,0.00022191,6]
[366453383,1750261837948,-460.0,0.00022191,6]
[366453384,1750261837958,-460.0,0.00022191,6]
[366453385,1750261837970,-460.0,0.00022191,6]
[366453386,1750261837980,-460.0,0.00022191,6]
[366453387,1750261837989,-246.23983499,0.00022191,6]
[366453388,1750261837999,-460.0,0.00022191,6]
[366453389,1750261838009,-808.58,0.00022191,6]
[366453390,1750261838019,-460.0,0.00022191,6]
[366453391,1750261838029,-460.0,0.00022191,6]
[366453392,1750261838039,-460.0,0.00022191,6]
[366453393,1750261838049,-348.08143489,0.00022191,6]
[366453394,1750261838059,-460.0,0.00022191,6]
[366453395,1750261838071,-460.0,0.00022191,6]
[366453396,1750261838081,-460.0,0.00022191,6]
[366453397,1750261838090,-460.0,0.00022191,6]
[366453398,1750261838100,-460.0,0.00022191,6]
[366453399,1750261838110,-460.0,0.00022191,6]
[366453400,1750261838120,-420.0,0.00022191,6]
[366453401,1750261838130,-460.0,0.00022191,6]
[366453402,1750261838140,-460.0,0.00022191,6]
[366453403,1750261838150,-460.0,0.00022191,6]
[366453404,1750261838159,-321.10482789,0.00022191,6]
[366453405,1750261838169,-420.0,0.00022191,6]
[366453406,1750261838179,-460.0,0.00022191,6]
[366453407,1750261838190,-430.0,0.00022191,6]
[366453409,1750261838199,-460.0,0.00022191,6]
[366453411,1750261838209,-286.54104373,0.00022191,6]
[366453412,1750261838218,-410.0,0.00022191,6]
[366453413,1750261838229,-165.46,0.00022191,6]
[366453414,1750261838238,-460.0,0.00022191,6]
[366453415,1750261838248,-258.17559289,0.00022191,6]
[366453416,1750261838258,-460.0,0.00022191,6]
[366453417,1750261838268,-440.0,0.00022191,6]
[366453418,1750261838278,-439.0,0.00022191,6]
[366453419,1750261838289,-460.0,0.00022191,6]
[366453420,1750261838299,-460.0,0.00022191,6]
[366453421,1750261838309,-408.98280923,0.00022191,6]
[366453422,1750261838322,-460.0,0.00022191,6]
[366453423,1750261838333,-404.66274325,0.00022191,6]
[366453424,1750261838342,-632.84,0.00022191,6]
[366453425,1750261838352,-460.0,0.00022191,6]
[366453426,1750261838362,-460.0,0.00022191,6]
[366453427,1750261838372,-430.0,0.00022191,6]
[366453428,1750261838382,-483.39,0.00022191,6]
[366453429,1750261838392,-8341.67,0.00022191,6]
[366453430,1750261838402,-460.0,0.00022191,6]
[366453431,1750261838412,-460.0,0.00022191,6]
[366453432,1750261838422,-460.0,0.00022191,6]
[366453433,1750261838431,-460.0,0.00022191,6]
[366453434,1750261838441,-3011.11,0.00022191,6]
[366453435,1750261838451,-460.0,0.00022191,6]
[366453436,1750261838461,-460.0,0.00022191,6]
[366453437,1750261838471,-444.58362983,0.00022191,6]
[366453438,1750261838480,-1737.09,0.00022191,6]
[366453439,1750261838490,-460.0,0.00022191,6]
[366453440,1750261838500,-561.41,0.00022191,6]
[366453441,1750261838510,-940.17,0.00022191,6]
[366453442,1750261838519,-460.0,0.00022191,6]
[366453443,1750261838529,-201.93340498,0.00022191,6]
[366453444,1750261838539,-460.0,0.00022191,6]
[366453445,1750261838548,-460.0,0.00022191,6]
[366453446,1750261838558,-689.89,0.00022191,6]
[366453447,1750261838570,-430.0,0.00022191,6]
[366453448,1750261838579,-460.0,0.00022191,6]
[366453449,1750261838590,-460.0,0.00022191,6]
[366453450,1750261838600,-793.81,0.00022191,6]
[366453451,1750261838609,-460.0,0.00022191,6]
[366453452,1750261838619,-460.0,0.00022191,6]
[366453453,1750261838628,-806.15,0.00022191,6]
[366453454,1750261838638,-723.98,0.00022191,6]
[366453455,1750261838648,-460.0,0.00022191,6]
[366453456,1750261838657,-460.0,0.00022191,6]
[366453457,1750261838667,-3909.89,0.00022191,6]
[366453458,1750261838676,-909.87,0.00022191,6]
[366453459,1750261838686,-460.0,0.00022191,6]
[366453460,1750261838695,-487.9,0.00022191,6]
[366453461,1750261838705,-460.0,0.00022191,6]
[366453462,1750261838715,-460.0,0.00022191,6]
[366453463,1750261838725,-4016.02,0.00022191,6]
[366453464,1750261838735,-2467.5,0.00022191,6]
[366453465,1750261838744,-515.02573627,0.00022191,6]
[366453466,1750261838754,-949.03,0.00022191,6]
[366453467,1750261838764,-738.7,0.00022191,6]
[366453468,1750261838773,-430.0,0.00022191,6]
[366453469,1750261838783,-1056.27,0.00022191,6]
[366453470,1750261838792,-380.0,0.00022191,6]
[366453472,1750261838803,-460.0,0.00022191,6]
[366453473,1750261838812,-460.0,0.00022191,6]
[366453475,1750261838824,-3690.95,0.00022191,6]
[366453477,1750261838834,-460.0,0.00022191,6]
[366453479,1750261838844,-460.0,0.00022191,6]
[366453482,1750261838855,-460.0,0.00022191,6]
[366453483,1750261838864,-845.96,0.00022191,6]
[366453485,1750261838875,-5493.22,0.00022191,6]
[366453487,1750261838886,-460.0,0.00022191,6]
[366453489,1750261838897,-460.0,0.00022191,6]
[366453490,1750261838907,-1119.58,0.00022191,6]
[366453491,1750261838916,-551.91646431,0.00022191,6]
[366453492,1750261838925,-460.0,0.00022191,6]
[366453493,1750261838934,-460.0,0.00022191,6]
[366453494,1750261838943,-1841.56,0.00022191,6]
[366453495,1750261838953,-1182.48,0.00022191,6]
[366453496,1750261838963,-1801.43,0.00022191,6]
[366453497,1750261838972,-550.45,0.00022191,6]
[366453498,1750261838982,-464.44,0.00022191,6]
[366453499,1750261838991,-460.0,0.00022191,6]
[366453501,1750261839001,-460.0,0.00022191,6]
[366453503,1750261839010,-460.0,0.00022191,6]
[366453504,1750261839021,-460.0,0.00022191,6]
[366453507,1750261839030,-460.0,0.00022191,6]
[366453509,1750261839040,-430.0,0.00022191,6]
[366453510,1750261839049,-460.0,0.00022191,6]
[366453513,1750261839059,-515.17,0.00022191,6]
[366453514,1750261839069,-1012.19,0.00022191,6]
[366453516,1750261839079,-1009.34,0.00022191,6]
[366453518,1750261839089,-582.23,0.00022191,6]
[366453520,1750261839099,-490.69,0.00022191,6]
[366453522,1750261839109,-460.0,0.00022191,6]
[366453524,1750261839119,-460.0,0.00022191,6]
[366453526,1750261839128,-581.17,0.00022191,6]
[366453528,1750261839138,-469.21,0.00022191,6]
[366453529,1750261839148,-655.37,0.00022191,6]
[366453530,1750261839158,-460.0,0.00022191,6]
[366453531,1750261839167,-2323.71,0.00022191,6]
[366453532,1750261839177,-824.12,0.00022191,6]
[366453533,1750261839187,-742.89,0.00022191,6]
[366453534,1750261839197,-460.0,0.00022191,6]
[366453535,1750261839207,-460.0,0.00022191,6]
[366453536,1750261839216,-460.0,0.00022191,6]
[366453537,1750261839226,-3044.01,0.00022191,6]
[366453538,1750261839235,-688.26,0.00022191,6]
[366453539,1750261839245,-1772.08,0.00022191,6]
[366453540,1750261839255,-1355.18,0.00022191,6]
[366453541,1750261839264,-194.36761753,0.00022191,6]
[366453542,1750261839274,-460.0,0.00022191,6]
[366453543,1750261839283,-564.55,0.00022191,6]
[366453544,1750261839294,-784.05,0.00022191,6]
[366453545,1750261839303,-460.0,0.00022191,6]
[366453546,1750261839312,-827.68,0.00022191,6]
[366453547,1750261839324,-56081.88682999,0.000222,2]
[366453548,1750261839447,-485.4814341,0.000222,2]
[366453549,1750261839780,-460.0,0.00021917,6]
[366453550,1750261839790,-35.7399992,0.00021917,6]
[366453551,1750261839802,-424.2600008,0.00021917,6]
[366453552,1750261839812,-460.0,0.00021917,6]
[366453553,1750261839822,-460.0,0.00021917,6]
[366453554,1750261839832,-460.0,0.00022191,6]
[366453555,1750261839842,-460.0,0.00022191,6]
[366453556,1750261839882,-460.0,0.00022191,6]
[366453557,1750261839895,-460.0,0.00022191,6]
[366453558,1750261839904,-360.08963111,0.000222,2]
[366453559,1750261839920,-15425.9021048,0.000222,2]
[366453560,1750261839931,-160.0,0.00022246,2]